bitfinex/quotes_BTCUSD_20240731
["timestamp","ask_amount","ask_price","bid_price","bid_amount"]
[1722422418894,1.83019051,66165.0,66164.0,0.00935]
[1722422419343,1.83019051,66165.0,66164.0,0.01035]
[1722422419573,1.84419051,66165.0,66164.0,0.01035]
[1722422419910,1.86715281,66165.0,66164.0,0.01135]
[1722422420506,1.87715281,66165.0,66164.0,0.01135]
[1722422420877,1.86715281,66165.0,66164.0,0.01135]
[1722422422690,1.87715281,66165.0,66164.0,0.01135]
[1722422422910,1.86715281,66165.0,66164.0,0.01135]
[1722422423296,1.87715281,66165.0,66164.0,0.01135]
[1722422423868,2.81179513,66165.0,66164.0,0.01135]
[1722422426153,2.85465949,66165.0,66164.0,0.01135]
[1722422426593,2.28919651,66163.0,66162.0,0.00935]
[1722422426772,2.41219651,66163.0,66162.0,0.00935]
[1722422426930,2.45506087,66163.0,66162.0,0.00935]
[1722422427932,2.46906087,66163.0,66162.0,0.01035]
[1722422429823,2.48306087,66163.0,66162.0,0.01135]
[1722422430401,2.51843477,66163.0,66162.0,0.01135]
[1722422430602,2.18077787,66163.0,66162.0,0.01135]
[1722422430968,2.13791351,66163.0,66162.0,0.01135]
[1722422431997,2.13791351,66163.0,66162.0,0.00595]
[1722422435001,1.69331851,66159.0,66151.0,0.0005]
[1722422435340,2.33341851,66159.0,66151.0,0.0005]
[1722422435551,0.03,66156.0,66151.0,0.0005]
[1722422435755,0.03,66156.0,66128.0,0.151221]
[1722422435756,0.151258,66112.0,66088.0,0.07534716]
[1722422435959,1.058806,66112.0,66099.0,0.52474115]
[1722422436167,0.75694751,66112.0,66105.0,0.0621]
[1722422436378,1.05946351,66112.0,66105.0,0.0621]
[1722422436805,0.75694751,66112.0,66105.0,0.0621]
[1722422437006,0.75694751,66112.0,66111.0,0.23799404]
[1722422437225,0.16591551,66112.0,66111.0,0.010861]
[1722422437423,0.78573151,66112.0,66111.0,0.010861]
[1722422437703,0.77094751,66112.0,66111.0,0.010861]
[1722422437935,0.88494751,66112.0,66111.0,0.011861]
[1722422438138,1.18746351,66112.0,66111.0,0.011861]
[1722422438407,1.20046351,66112.0,66111.0,0.011861]
[1722422438668,1.18746351,66112.0,66111.0,0.011861]
[1722422439081,1.20146351,66112.0,66111.0,0.011861]
[1722422439449,1.20146351,66112.0,66111.0,0.010861]
[1722422439651,1.17346351,66112.0,66111.0,0.009861]
[1722422440687,1.15946351,66112.0,66111.0,0.009861]
[1722422441024,1.18746351,66112.0,66111.0,0.009861]
[1722422441474,0.17991551,66112.0,66111.0,0.23819404]
[1722422441675,0.46843151,66112.0,66111.0,0.30459404]
[1722422441874,0.014,66112.0,66111.0,0.30459404]
[1722422442052,0.028,66112.0,66111.0,0.30459404]
[1722422442459,0.014,66112.0,66111.0,0.30459404]
[1722422442999,0.151258,66112.0,66111.0,0.30459404]
[1722422443324,0.158258,66112.0,66111.0,0.30459404]
[1722422443532,0.007,66112.0,66111.0,0.30459404]
[1722422443708,0.00065751,66112.0,66111.0,0.30459404]
[1722422443907,0.15591551,66112.0,66111.0,0.30459404]
[1722422444125,0.45843151,66112.0,66111.0,0.30459404]
[1722422444323,1.06346351,66112.0,66111.0,0.30459404]
[1722422444702,1.07646351,66112.0,66111.0,0.30459404]
[1722422445108,1.06346351,66112.0,66111.0,0.30459404]
[1722422445310,1.06346351,66112.0,66111.0,0.009861]
[1722422445550,1.07646351,66112.0,66111.0,0.009861]
[1722422445923,1.06346351,66112.0,66111.0,0.009861]
[1722422446307,1.05946351,66112.0,66111.0,0.009861]
[1722422446708,1.07346351,66112.0,66111.0,0.009861]
[1722422447169,1.08746351,66112.0,66111.0,0.009861]
[1722422447373,1.41297951,66112.0,66111.0,0.009861]
[1722422447813,1.37597951,66112.0,66111.0,0.009861]
[1722422448373,1.38897951,66112.0,66111.0,0.009861]
[1722422448928,1.07346351,66112.0,66111.0,0.009861]
[1722422449669,1.51996121,66112.0,66111.0,0.009861]
[1722422449877,1.49897951,66112.0,66111.0,0.009861]
[1722422450301,1.21046351,66112.0,66111.0,0.009861]
[1722422450534,1.15946351,66112.0,66111.0,0.076261]
[1722422450837,1.17346351,66112.0,66111.0,0.076261]
[1722422451041,1.18746351,66112.0,66111.0,0.076261]
[1722422451237,1.17346351,66112.0,66111.0,0.076261]
[1722422451439,1.15946351,66112.0,66111.0,0.076261]
[1722422451615,0.87094751,66112.0,66111.0,0.076261]
[1722422451844,0.77094751,66112.0,66111.0,0.076261]
[1722422452243,0.46843151,66112.0,66111.0,0.24259014]
[1722422452446,0.45443151,66112.0,66111.0,0.22689404]
[1722422452768,0.46843151,66112.0,66111.0,0.22689404]
[1722422452907,0.45443151,66112.0,66111.0,0.22689404]
[1722422453362,0.77094751,66112.0,66111.0,0.22689404]
[1722422453782,0.77094751,66112.0,66111.0,0.076261]
[1722422454188,0.78494751,66112.0,66111.0,0.076261]
[1722422454372,1.08746351,66112.0,66111.0,0.009861]
[1722422454584,1.11046351,66112.0,66111.0,0.009861]
[1722422454820,1.09646351,66112.0,66111.0,0.009861]
[1722422455148,1.11046351,66112.0,66111.0,0.009861]
[1722422455602,1.07346351,66112.0,66111.0,0.009861]
[1722422456413,1.08746351,66112.0,66111.0,0.009861]
[1722422456618,1.07346351,66112.0,66111.0,0.009861]
[1722422457003,1.08746351,66112.0,66111.0,0.009861]
[1722422457202,1.07346351,66112.0,66111.0,0.009861]
[1722422457490,1.08746351,66112.0,66111.0,0.009861]
[1722422458061,1.08746351,66112.0,66111.0,0.089161]
[1722422461120,1.08746351,66112.0,66111.0,0.009861]
[1722422462939,1.41297951,66112.0,66111.0,0.009861]
[1722422463176,1.11046351,66112.0,66111.0,0.009861]
[1722422465090,1.41297951,66112.0,66111.0,0.009861]
[1722422465419,1.11046351,66112.0,66111.0,0.009861]
[1722422470206,1.08746351,66112.0,66111.0,0.009861]
[1722422470689,1.08746351,66112.0,66111.0,0.149261]
[1722422470881,0.78494751,66112.0,66111.0,0.149261]
[1722422471077,0.48243151,66112.0,66111.0,0.149261]
[1722422471279,0.78494751,66112.0,66111.0,0.149261]
[1722422471925,0.77094751,66112.0,66111.0,0.149261]
[1722422472283,0.75694751,66112.0,66111.0,0.149261]
[1722422472602,1.07346351,66112.0,66111.0,0.149261]
[1722422472984,1.07346351,66112.0,66111.0,0.009861]
[1722422473610,1.09646351,66112.0,66111.0,0.009861]
[1722422473949,1.11046351,66112.0,66111.0,0.009861]
[1722422474559,1.08246351,66112.0,66111.0,0.009861]
[1722422474730,1.11046351,66112.0,66111.0,0.009861]
[1722422475061,1.09646351,66112.0,66111.0,0.009861]
[1722422475258,1.08246351,66112.0,66111.0,0.009861]
[1722422475462,1.39897951,66112.0,66111.0,0.009861]
[1722422475676,1.09646351,66112.0,66111.0,0.009861]
[1722422475817,1.24715783,66112.0,66111.0,0.009861]
[1722422476017,1.54967383,66112.0,66111.0,0.009861]
[1722422476212,1.34715783,66112.0,66111.0,0.009861]
[1722422476418,1.63637951,66112.0,66111.0,0.009861]
[1722422476642,1.65037951,66112.0,66111.0,0.009861]
[1722422477118,1.63637951,66112.0,66111.0,0.009861]
[1722422477318,1.65037951,66112.0,66111.0,0.009861]
[1722422477978,1.63637951,66112.0,66111.0,0.009861]
[1722422478586,1.65037951,66112.0,66111.0,0.009861]
[1722422478784,1.63637951,66112.0,66111.0,0.009861]
[1722422479007,2.42962287,66112.0,66111.0,0.009861]
[1722422479165,2.42962287,66112.0,66102.0,0.00059]
[1722422479166,1.84476851,66103.0,66102.0,0.00059]
[1722422479364,1.84476851,66103.0,66097.0,0.0243245]
[1722422479365,0.48452851,66098.0,66097.0,0.0243245]
[1722422479565,2.31922758,66098.0,66097.0,0.0243245]
[1722422479789,2.68690858,66098.0,66097.0,0.0243245]
[1722422479994,0.19005751,66092.0,66071.0,0.061137]
[1722422480195,0.19005751,66092.0,66091.0,1e-06]
[1722422480196,1.65395771,66092.0,66091.0,1e-06]
[1722422480396,0.75740751,66072.0,66071.0,0.0005]
[1722422480704,1.18310751,66072.0,66071.0,0.0005]
[1722422480910,1.16010751,66072.0,66071.0,0.0005]
[1722422481110,0.60543,66069.0,66061.0,0.0466]
[1722422481285,0.60543,66069.0,66051.0,0.80838815]
[1722422481286,0.151395,66052.0,66051.0,0.0758]
[1722422481470,0.00065751,66062.0,66051.0,0.0758]
[1722422481669,0.151391,66054.0,66052.0,0.15063304]
[1722422481925,0.00065751,66058.0,66052.0,0.15063304]
[1722422482120,0.4659,66064.0,66052.0,0.15063304]
[1722422482121,0.4659,66064.0,66056.0,0.0753]
[1722422482434,0.4659,66064.0,66063.0,0.0753]
[1722422482570,0.4659,66064.0,66063.0,0.22593304]
[1722422482775,0.4659,66064.0,66063.0,0.37730304]
[1722422482990,0.4659,66064.0,66063.0,0.68004404]
[1722422483214,0.302678,66077.0,66065.0,0.0826]
[1722422483415,0.454022,66076.0,66075.0,0.07534716]
[1722422483667,0.15199751,66076.0,66075.0,0.07534716]
[1722422483883,0.45467851,66076.0,66075.0,0.07534716]
[1722422484075,0.75735951,66076.0,66075.0,0.07534716]
[1722422484271,0.75735951,66076.0,66075.0,0.0602]
[1722422485032,0.00065751,66076.0,66075.0,0.0602]
[1722422485233,0.16599751,66076.0,66075.0,0.1388]
[1722422485448,0.16599751,66076.0,66075.0,0.15268]
[1722422485661,0.45467851,66076.0,66075.0,0.15268]
[1722422485877,0.011,66076.0,66075.0,0.30331304]
[1722422486083,0.011,66076.0,66075.0,0.75734204]
[1722422486275,0.4659,66078.0,66076.0,0.15134]
[1722422486518,0.4659,66078.0,66077.0,0.3773182]
[1722422486820,0.00065751,66085.0,66082.0,0.151326]
[1722422487022,0.4659,66091.0,66077.0,0.2259802]
[1722422487023,0.4659,66091.0,66084.0,0.37799216]
[1722422487167,0.00065751,66087.0,66085.0,0.15063304]
[1722422487569,0.15197151,66088.0,66085.0,0.15063304]
[1722422487765,0.00065751,66090.0,66085.0,0.15063304]
[1722422487969,0.15197051,66088.0,66085.0,0.15063304]
[1722422488223,0.15197451,66086.0,66085.0,0.15063304]
[1722422488524,0.00065751,66086.0,66085.0,0.15063304]
[1722422488727,0.15197451,66086.0,66085.0,0.15063304]
[1722422489029,0.45460951,66086.0,66085.0,0.15063304]
[1722422489244,0.15197451,66086.0,66085.0,0.15063304]
[1722422489602,0.15497451,66086.0,66085.0,0.15063304]
[1722422490034,0.15197451,66086.0,66085.0,0.15063304]
[1722422490351,0.45460951,66086.0,66085.0,0.15063304]
[1722422490583,0.45396,66085.0,66084.0,0.1388]
[1722422490755,0.45461751,66085.0,66084.0,0.28943304]
[1722422490996,0.75725751,66085.0,66084.0,0.28943304]
[1722422491470,1.05989751,66085.0,66084.0,0.0786]
[1722422491612,0.75729251,66082.0,66081.0,0.0605]
[1722422493224,0.76229251,66082.0,66081.0,0.0605]
[1722422493982,0.45963851,66082.0,66081.0,0.07407]
[1722422494183,0.46363851,66082.0,66081.0,0.0605]
[1722422494561,0.76629251,66082.0,66081.0,0.0605]
[1722422495491,0.16098451,66082.0,66081.0,0.0605]
[1722422495863,0.46363851,66082.0,66081.0,0.0605]
[1722422496057,0.160327,66082.0,66081.0,0.22470304]
[1722422496262,0.009,66082.0,66081.0,0.22470304]
[1722422496459,0.160327,66082.0,66081.0,0.22470304]
[1722422496760,0.16098451,66082.0,66081.0,0.22470304]
[1722422497158,0.009,66082.0,66081.0,0.22470304]
[1722422497968,0.15132,66085.0,66081.0,0.28713304]
[1722422498113,0.151322,66084.0,66082.0,0.15063304]
[1722422498556,0.15132,66085.0,66082.0,0.15063304]
[1722422498960,0.15197751,66085.0,66082.0,0.15063304]
[1722422499156,0.15132,66085.0,66082.0,0.15063304]
[1722422499509,0.157322,66084.0,66082.0,0.15063304]
[1722422499710,0.006,66084.0,66082.0,0.15063304]
[1722422499914,0.006,66084.0,66083.0,0.36697116]
[1722422500265,0.006,66084.0,66083.0,1.1229022]
[1722422500469,0.006,66084.0,66083.0,1.04755504]
[1722422500692,0.006,66084.0,66083.0,1.35020404]
[1722422500927,0.00065751,66092.0,66088.0,0.151311]
[1722422501121,0.00065751,66092.0,66090.0,0.1431]
[1722422501284,0.00065751,66093.0,66092.0,0.151304]
[1722422501489,0.00065751,66093.0,66092.0,0.15063304]
[1722422501908,0.00065751,66093.0,66092.0,0.30193704]
[1722422502307,0.00065751,66093.0,66092.0,0.15063304]
[1722422502727,0.00865751,66093.0,66092.0,0.30193704]
[1722422502928,0.00865751,66093.0,66092.0,0.15063304]
[1722422503478,0.00865751,66093.0,66092.0,0.30193704]
[1722422504629,0.01565751,66093.0,66092.0,0.30193704]
[1722422505429,0.01565751,66093.0,66092.0,0.60454504]
[1722422505633,0.01565751,66093.0,66092.0,0.15063304]
[1722422505787,0.01565751,66093.0,66092.0,0.30193704]
[1722422506191,0.01565751,66093.0,66092.0,0.15063304]
[1722422509916,0.01565751,66093.0,66092.0,0.60454504]
[1722422510214,0.015,66093.0,66092.0,0.90715304]
[1722422510389,0.015,66093.0,66092.0,0.74314504]
[1722422510790,0.008,66093.0,66092.0,0.74314504]
[1722422511011,0.00065751,66100.0,66092.0,0.28923304]
[1722422511179,0.151291,66098.0,66093.0,0.15063304]
[1722422511377,0.00065751,66097.0,66094.0,0.151299]
[1722422511585,0.00065751,66097.0,66095.0,0.15063304]
[1722422512314,0.15194851,66098.0,66095.0,0.15063304]
[1722422512519,0.00065751,66097.0,66095.0,0.15063304]
[1722422513109,0.15195151,66097.0,66095.0,0.15063304]
[1722422513488,0.15194751,66098.0,66095.0,0.15063304]
[1722422513875,0.007,66097.0,66095.0,0.15063304]
[1722422514429,0.15194751,66098.0,66095.0,0.15063304]
[1722422514430,0.30323951,66098.0,66095.0,0.15063304]
[1722422514604,0.151293,66097.0,66095.0,0.15063304]
[1722422515020,0.15994751,66098.0,66095.0,0.15063304]
[1722422515585,0.007,66097.0,66095.0,0.15063304]
[1722422516105,0.013,66097.0,66095.0,0.15063304]
[1722422516308,0.006,66097.0,66095.0,0.15063304]
[1722422517349,0.006,66097.0,66096.0,0.1441]
[1722422517555,0.006,66097.0,66096.0,0.29473304]
[1722422517953,0.006,66097.0,66096.0,0.44602804]
[1722422518154,0.006,66097.0,66096.0,1.05120804]
[1722422518582,0.013,66097.0,66096.0,1.05120804]
[1722422518781,0.006,66097.0,66096.0,1.05120804]
[1722422518982,0.00065751,66104.0,66097.0,0.1418]
[1722422519160,0.4659,66105.0,66100.0,0.151284]
[1722422519362,0.00065751,66104.0,66101.0,0.30191604]
[1722422519908,0.00065751,66104.0,66102.0,0.29108]
[1722422520111,0.004,66104.0,66103.0,0.15063304]
[1722422520679,0.4659,66105.0,66103.0,0.45319004]
[1722422520885,0.004,66104.0,66103.0,0.15063304]
[1722422521244,0.004,66104.0,66103.0,0.90702804]
[1722422521445,0.004,66104.0,66103.0,0.60447004]
[1722422522048,0.004,66104.0,66103.0,0.30191204]
[1722422522169,0.4659,66105.0,66103.0,0.15063304]
[1722422523248,0.00065751,66107.0,66103.0,0.15163304]
[1722422523452,0.00065751,66107.0,66103.0,0.30291104]
[1722422523642,0.15192551,66108.0,66103.0,0.15163304]
[1722422523807,0.00065751,66109.0,66105.0,0.151273]
[1722422524014,0.15192051,66110.0,66106.0,0.30190504]
[1722422524243,0.15196145,66110.0,66106.0,0.30190504]
[1722422524413,0.00069845,66110.0,66106.0,0.30190304]
[1722422524855,4.094e-05,66110.0,66106.0,0.15063304]
[1722422525260,0.00604094,66110.0,66106.0,0.30190404]
[1722422525423,0.00604094,66110.0,66107.0,0.151269]
[1722422525625,0.00604094,66110.0,66108.0,0.15063304]
[1722422527261,4.094e-05,66110.0,66108.0,0.15063304]
[1722422527879,0.00069845,66110.0,66108.0,0.15063304]
[1722422528086,0.01169845,66110.0,66108.0,0.15063304]
[1722422528443,0.01104094,66110.0,66108.0,0.15063304]
[1722422528646,0.01104094,66110.0,66109.0,0.292265]
[1722422528845,0.01104094,66110.0,66109.0,0.44289804]
[1722422529272,0.01104094,66110.0,66109.0,0.29163304]
[1722422529680,0.00604094,66110.0,66109.0,0.29163304]
[1722422530373,4.094e-05,66110.0,66109.0,0.29163304]
[1722422530570,0.00504094,66110.0,66109.0,0.29163304]
[1722422530768,0.01169845,66110.0,66109.0,0.29163304]
[1722422530981,0.01104094,66110.0,66109.0,0.29163304]
[1722422531970,0.01104094,66110.0,66109.0,0.44289804]
[1722422532411,0.01104094,66110.0,66109.0,0.74542804]
[1722422532585,0.01104094,66110.0,66109.0,1.04795804]
[1722422533379,0.00604094,66110.0,66109.0,1.35048804]
[1722422533553,0.00604094,66110.0,66109.0,1.04795804]
[1722422533897,0.01004094,66110.0,66109.0,1.04795804]
[1722422534094,0.00404094,66110.0,66109.0,1.04795804]
[1722422534399,4.094e-05,66110.0,66109.0,1.04795804]
[1722422534622,0.00304094,66110.0,66109.0,0.29163304]
[1722422534805,4.094e-05,66110.0,66109.0,0.29163304]
[1722422535007,0.15130394,66110.0,66109.0,0.15063304]
[1722422535242,0.75801345,66110.0,66109.0,0.15063304]
[1722422535453,0.00065751,66099.0,66096.0,0.0821]
[1722422535650,4.094e-05,66098.0,66097.0,0.15063304]
[1722422535877,0.45391194,66098.0,66097.0,0.15063304]
[1722422536022,0.15133094,66098.0,66097.0,0.15063304]
[1722422536551,4.094e-05,66098.0,66097.0,0.15063304]
[1722422536749,0.15133094,66098.0,66097.0,0.15063304]
[1722422536970,4.094e-05,66098.0,66097.0,0.15063304]
[1722422537587,0.00104094,66098.0,66097.0,0.15563304]
[1722422537886,0.45491194,66098.0,66097.0,0.15563304]
[1722422538087,0.15333094,66098.0,66097.0,0.15563304]
[1722422538736,0.15398845,66098.0,66097.0,0.15563304]
[1722422539252,0.45656945,66098.0,66097.0,0.15563304]
[1722422540565,0.15398845,66098.0,66097.0,0.15563304]
[1722422541404,0.45656945,66098.0,66097.0,0.15563304]
[1722422542101,0.15398845,66098.0,66097.0,0.15563304]
[1722422542706,0.45656945,66098.0,66097.0,0.15563304]
[1722422543279,1.06173145,66098.0,66097.0,0.15563304]
[1722422544514,1.06073145,66098.0,66097.0,0.15563304]
[1722422544900,1.07173145,66098.0,66097.0,0.15063304]
[1722422545245,1.06673145,66098.0,66097.0,0.15063304]
[1722422545798,1.05973145,66098.0,66097.0,0.15063304]
[1722422546283,1.07373145,66098.0,66097.0,0.15063304]
[1722422547915,0.75719951,66090.0,66089.0,0.0614]
[1722422548114,0.45463851,66082.0,66081.0,0.063]
[1722422548427,0.151327,66082.0,66081.0,0.063]
[1722422548601,0.151323,66084.0,66081.0,0.063]
[1722422548803,4.094e-05,66082.0,66081.0,0.516987]
[1722422549004,4.094e-05,66082.0,66081.0,0.819645]
[1722422549202,4.094e-05,66082.0,66081.0,0.97027804]
[1722422549413,4.094e-05,66082.0,66081.0,1.05067804]
[1722422549747,0.00104094,66082.0,66081.0,1.05067804]
[1722422549953,4.094e-05,66082.0,66081.0,1.05467804]
[1722422550970,4.094e-05,66082.0,66081.0,2.00863653]
[1722422551142,4.094e-05,66082.0,66081.0,2.27283653]
[1722422551355,0.00104094,66082.0,66081.0,2.27683653]
[1722422551755,0.00104094,66082.0,66081.0,1.97417853]
[1722422551921,0.00104094,66082.0,66081.0,1.97017853]
[1722422552120,0.00204094,66082.0,66081.0,2.27683653]
[1722422552480,0.00104094,66082.0,66081.0,1.95690453]
[1722422552697,0.00104094,66082.0,66081.0,1.80197853]
[1722422552906,4.094e-05,66082.0,66081.0,1.80197853]
[1722422553083,0.00104094,66082.0,66081.0,1.80597853]
[1722422553280,0.00204094,66082.0,66081.0,1.78463604]
[1722422553484,0.00104094,66082.0,66081.0,1.56733604]
[1722422553702,0.00104094,66082.0,66081.0,0.85202004]
[1722422553939,0.00204094,66082.0,66081.0,0.85202004]
[1722422554247,0.00104094,66082.0,66081.0,1.15067804]
[1722422554384,0.00104094,66082.0,66081.0,0.84802004]
[1722422554582,0.00204094,66082.0,66081.0,0.75902004]
[1722422555202,4.094e-05,66082.0,66081.0,0.29403304]
[1722422555559,4.094e-05,66082.0,66081.0,0.45536204]
[1722422555967,4.094e-05,66082.0,66081.0,0.44536204]
[1722422556316,4.094e-05,66082.0,66081.0,0.16063304]
[1722422556692,4.094e-05,66082.0,66081.0,0.15563304]
[1722422557045,4.094e-05,66082.0,66081.0,0.15963304]
[1722422557473,4.094e-05,66082.0,66081.0,0.15463304]
[1722422557682,4.094e-05,66082.0,66081.0,0.75264645]
[1722422558030,4.094e-05,66082.0,66081.0,1.06030445]
[1722422558481,4.094e-05,66082.0,66081.0,0.75364645]
[1722422558663,4.094e-05,66082.0,66081.0,0.75562004]
[1722422558861,4.094e-05,66082.0,66081.0,1.05827804]
[1722422559064,4.094e-05,66082.0,66081.0,1.05327804]
[1722422559263,4.094e-05,66082.0,66081.0,0.75062004]
[1722422559467,4.094e-05,66082.0,66081.0,0.75562004]
[1722422559688,4.094e-05,66082.0,66081.0,0.75062004]
[1722422560285,4.094e-05,66082.0,66081.0,1.05827804]
[1722422561358,4.094e-05,66082.0,66081.0,1.05327804]
[1722422561552,4.094e-05,66082.0,66081.0,1.05827804]
[1722422561756,4.094e-05,66082.0,66081.0,1.05327804]
[1722422562260,4.094e-05,66082.0,66081.0,1.05827804]
[1722422562757,4.094e-05,66082.0,66081.0,1.36093604]
[1722422562959,4.094e-05,66082.0,66081.0,1.35593604]
[1722422563266,4.094e-05,66082.0,66081.0,1.36093604]
[1722422563806,4.094e-05,66082.0,66081.0,1.05827804]
[1722422569798,4.094e-05,66082.0,66081.0,1.36093604]
[1722422572441,4.094e-05,66082.0,66081.0,1.37093604]
[1722422572644,4.094e-05,66082.0,66081.0,1.36093604]
[1722422575450,4.094e-05,66082.0,66081.0,1.37093604]
[1722422575654,4.094e-05,66082.0,66081.0,1.36093604]
[1722422580120,4.094e-05,66082.0,66081.0,1.36985858]
[1722422580278,4.094e-05,66082.0,66081.0,1.06720058]
[1722422580718,4.094e-05,66082.0,66081.0,1.36985858]
[1722422581038,4.094e-05,66082.0,66081.0,1.06720058]
[1722422582265,4.094e-05,66082.0,66081.0,1.36985858]
[1722422582548,4.094e-05,66082.0,66081.0,1.06720058]
[1722422585921,0.00087094,66082.0,66081.0,1.06720058]
[1722422586657,0.00087094,66082.0,66081.0,0.61462004]
[1722422587001,0.06282845,66082.0,66081.0,0.16063304]
[1722422587212,0.14382845,66082.0,66081.0,0.31196204]
[1722422587448,0.00087094,66082.0,66081.0,0.91727804]
[1722422587653,0.00087094,66082.0,66081.0,1.05837804]
[1722422588116,0.00087094,66082.0,66081.0,0.75572004]
[1722422588417,0.00087094,66082.0,66081.0,0.61462004]
[1722422589800,0.00083,66082.0,66081.0,0.61462004]
[1722422590018,0.06563,66082.0,66081.0,0.31196204]
[1722422590172,0.14363,66082.0,66081.0,0.61462004]
[1722422590375,0.14428751,66082.0,66081.0,0.61462004]
[1722422590777,0.14428751,66082.0,66081.0,0.31196204]
[1722422591180,1.20357651,66082.0,66081.0,0.16063304]
[1722422592477,1.20357651,66082.0,66081.0,0.15563304]
[1722422592630,1.20357651,66082.0,66081.0,0.15063304]
[1722422592974,1.21857651,66082.0,66081.0,0.15263304]
[1722422593189,1.21057651,66082.0,66081.0,0.15163304]
[1722422593412,1.20357651,66082.0,66081.0,0.15063304]
[1722422593592,1.23057651,66082.0,66081.0,0.15263304]
[1722422593958,1.21657651,66082.0,66081.0,0.15163304]
[1722422594139,1.21157651,66082.0,66081.0,0.15163304]
[1722422594338,1.21857651,66082.0,66081.0,0.15263304]
[1722422594540,1.21057651,66082.0,66081.0,0.15163304]
[1722422595657,1.20357651,66082.0,66081.0,0.15063304]
[1722422595837,1.21757651,66082.0,66081.0,0.15163304]
[1722422596038,1.23057651,66082.0,66081.0,0.15263304]
[1722422596574,1.21757651,66082.0,66081.0,0.15163304]
[1722422596776,1.20357651,66082.0,66081.0,0.15063304]
[1722422596980,0.604611,66082.0,66081.0,0.15263304]
[1722422597162,0.47046851,66082.0,66081.0,0.16769634]
[1722422597501,0.45546851,66082.0,66081.0,0.16569634]
[1722422597797,0.48246851,66082.0,66081.0,0.16769634]
[1722422598030,0.02783,66082.0,66081.0,0.16769634]
[1722422598141,0.02783,66082.0,66081.0,0.45972534]
[1722422598350,0.02783,66082.0,66081.0,1.06504134]
[1722422598937,0.02783,66082.0,66081.0,1.37769934]
[1722422599209,0.00083,66082.0,66081.0,1.37569934]
[1722422599367,0.00783,66082.0,66081.0,1.37669934]
[1722422599558,0.01583,66082.0,66081.0,1.37769934]
[1722422599967,0.00883,66082.0,66081.0,1.36669934]
[1722422600173,0.00883,66082.0,66081.0,1.38169934]
[1722422600365,0.00083,66082.0,66081.0,1.38069934]
[1722422600792,0.00083,66082.0,66081.0,1.37069934]
[1722422600991,0.00183,66082.0,66081.0,1.37469934]
[1722422602322,0.00183,66082.0,66081.0,1.36569934]
[1722422602323,0.00083,66082.0,66081.0,1.36569934]
[1722422602521,0.00083,66082.0,66081.0,1.37069934]
[1722422602736,0.00183,66082.0,66081.0,1.37869934]
[1722422602953,0.00183,66082.0,66081.0,1.37369934]
[1722422603274,0.00183,66082.0,66081.0,1.37469934]
[1722422603593,0.00283,66082.0,66081.0,1.38369934]
[1722422604233,0.00183,66082.0,66081.0,1.38469934]
[1722422604459,0.00183,66082.0,66081.0,1.68735734]
[1722422604664,0.00183,66082.0,66081.0,1.78735734]
[1722422604856,0.00183,66082.0,66081.0,1.78869983]
[1722422605562,0.00183,66082.0,66081.0,2.58849683]
[1722422605777,0.00183,66082.0,66081.0,2.30883883]
[1722422605925,0.00283,66082.0,66081.0,2.31983883]
[1722422606817,0.00083,66082.0,66081.0,2.24741483]
[1722422607020,0.00283,66082.0,66081.0,2.27141483]
[1722422613383,0.00283,66082.0,66081.0,2.59814383]
[1722422615914,0.0613,66105.0,66104.0,0.756382]
[1722422616130,0.08203,66110.0,66109.0,0.151265]
[1722422616329,0.08203,66110.0,66109.0,0.30189804]
[1722422616626,0.08203,66110.0,66109.0,0.60442804]
[1722422617032,0.00083,66110.0,66109.0,0.60442804]
[1722422617176,0.00083,66110.0,66109.0,0.30189804]
[1722422617377,0.00083,66110.0,66109.0,0.15063304]
[1722422617581,0.00083,66110.0,66109.0,0.30189804]
[1722422617804,0.00383,66110.0,66109.0,0.15063304]
[1722422617982,0.00448751,66110.0,66109.0,0.30189804]
[1722422618298,0.00383,66110.0,66109.0,0.60442804]
[1722422619081,0.00383,66110.0,66109.0,0.90695804]
[1722422620419,0.00383,66110.0,66109.0,1.20948804]
[1722422621748,0.00383,66110.0,66109.0,0.60742804]
[1722422622463,0.00383,66110.0,66109.0,0.60442804]
[1722422623222,0.00383,66110.0,66109.0,0.90695804]
[1722422623513,0.00083,66110.0,66109.0,0.15063304]
[1722422623723,0.00083,66110.0,66109.0,0.15163304]
[1722422624015,0.00083,66110.0,66109.0,0.30189804]
[1722422624161,0.00083,66110.0,66109.0,0.15063304]
[1722422624355,0.00083,66110.0,66109.0,0.30189804]
[1722422625843,0.00083,66110.0,66109.0,0.60442804]
[1722422627157,0.00083,66110.0,66109.0,0.30189804]
[1722422627332,0.00083,66110.0,66109.0,0.15063304]
[1722422631343,0.00083,66110.0,66109.0,0.30189804]
[1722422631639,0.00083,66110.0,66109.0,0.15063304]
[1722422631880,0.00083,66110.0,66109.0,0.30189804]
[1722422633769,0.00148751,66110.0,66109.0,0.15063304]
[1722422633967,0.00083,66110.0,66109.0,0.9823052]
[1722422634102,0.00083,66110.0,66109.0,1.04755804]
[1722422635899,0.00083,66110.0,66109.0,1.20008804]
[1722422636701,0.00083,66110.0,66109.0,1.20208804]
[1722422636970,0.00121697,66110.0,66109.0,1.20508804]
[1722422637309,0.00121697,66110.0,66109.0,1.20308804]
[1722422637520,0.00121697,66110.0,66109.0,1.20608804]
[1722422638020,0.00121697,66110.0,66109.0,1.33179409]
[1722422638417,0.00121697,66110.0,66109.0,1.02926409]
[1722422639938,0.00121697,66110.0,66109.0,1.33179409]
[1722422640688,0.00121697,66110.0,66109.0,1.02926409]
[1722422641635,0.00121697,66110.0,66109.0,0.88866409]
[1722422641956,0.00121697,66110.0,66109.0,0.76295804]
[1722422642143,0.00121697,66110.0,66109.0,0.8886714]
[1722422644412,0.00121697,66110.0,66109.0,0.88857277]
[1722422652268,0.00121697,66110.0,66109.0,0.76285941]
[1722422652422,0.00121697,66110.0,66109.0,1.19109764]
[1722422653479,0.00121697,66110.0,66109.0,1.33539764]
[1722422654710,0.00121697,66110.0,66109.0,1.33538727]
[1722422655657,0.00121697,66110.0,66109.0,1.32938727]
[1722422656068,0.00121697,66110.0,66109.0,1.33938727]
[1722422656491,0.00121697,66110.0,66109.0,1.32938727]
[1722422657020,0.00121697,66110.0,66109.0,1.35238727]
[1722422657428,0.00121697,66110.0,66109.0,1.34138727]
[1722422657600,0.00121697,66110.0,66109.0,1.35438727]
[1722422658514,0.00121697,66110.0,66109.0,1.05185776]
[1722422658855,0.00121697,66110.0,66109.0,1.03325633]
[1722422659086,0.00121697,66110.0,66109.0,1.33578633]
[1722422659289,0.00121697,66110.0,66109.0,1.03325633]
[1722422735897,0.89211059,66117.0,66116.0,0.01]
[1722422736140,1.19460459,66117.0,66116.0,0.01]
[1722422736343,0.75661059,66117.0,66116.0,0.005]